bitfinex/quotes_ETHUSD_20220201
["timestamp","ask_amount","ask_price","bid_price","bid_amount"]
[1643740824861,0.37128816,2788.9,2788.7,0.1792]
[1643740825462,0.37128816,2788.9,2788.3,0.1792]
[1643740825662,0.37128816,2788.9,2788.4,0.74250066]
[1643740826105,0.31929347,2788.4,2788.0,1.7929605]
[1643740826306,0.31929347,2788.4,2788.1,2.53472623]
[1643740826516,0.31929347,2788.4,2788.3,0.143554]
[1643740826713,4.22744631,2789.5,2788.3,5.04172623]
[1643740826911,4.22744631,2789.5,2788.4,0.74172623]
[1643740827111,4.52744631,2789.5,2788.4,0.74172623]
[1643740827509,4.82744631,2789.5,2788.4,0.74172623]
[1643740828512,0.67036604,2789.0,2788.4,0.74172623]
[1643740829212,4.52744631,2789.5,2788.4,0.74172623]
[1643740829416,1.6353,2789.5,2788.4,1.65129329]
[1643740829615,0.43688618,2789.3,2788.6,0.39552602]
[1643740829870,1.6353,2789.5,2789.3,0.00220082]
[1643740830076,1.4561,2789.5,2789.3,0.00220082]
[1643740830274,1.1561,2789.5,2789.3,0.00220082]
[1643740830576,0.1792,2789.9,2789.3,0.00220082]
[1643740831175,0.35987846,2789.7,2789.3,0.00220082]
[1643740831580,9.674,2790.0,2789.3,0.73988787]
[1643740831975,9.674,2790.0,2789.3,0.74801794]
[1643740832176,9.674,2790.0,2789.4,0.73768705]
[1643740832375,9.674,2790.0,2789.5,0.73768705]
[1643740832577,9.674,2790.0,2789.3,0.00220082]
[1643740832578,5.8785,2790.0,2789.3,0.00220082]
[1643740832781,5.8785,2790.0,2789.3,0.75661068]
[1643740832980,5.8785,2790.0,2789.4,0.7455078]
[1643740833285,0.1792,2790.6,2789.5,0.9246178]
[1643740833483,0.38808393,2790.3,2789.7,0.37771844]
[1643740833712,4.1306,2791.3,2789.8,1.41379356]
[1643740833907,4.1306,2791.3,2789.9,0.7455078]
[1643740833908,0.1792,2791.3,2789.9,0.7455078]
[1643740834127,19.4132,2791.6,2789.9,0.7455078]
[1643740834128,0.1791,2791.5,2790.1,1.0]
[1643740834307,13.1259,2791.6,2790.6,0.8956774]
[1643740834502,0.01236634,2791.7,2790.7,1.50477]
[1643740834503,0.74438893,2791.5,2790.7,1.50477]
[1643740834710,0.36572689,2791.7,2790.7,1.69439492]
[1643740834913,0.36572689,2791.7,2790.8,0.74549457]
[1643740835106,2.1791,2792.2,2790.9,0.1791]
[1643740835320,0.74404954,2792.1,2791.2,0.8955089]
[1643740835508,0.1791,2792.0,2791.4,0.89552]
[1643740835708,0.74404954,2791.9,2791.4,0.89552]
[1643740835908,2.1791,2792.2,2791.4,0.89552]
[1643740836107,0.33894499,2791.7,2791.4,0.89552]
[1643740836311,0.33894499,2791.7,2791.2,0.1791]
[1643740836508,0.33894499,2791.7,2791.1,0.1791]
[1643740837113,1.99563838,2791.6,2791.1,0.1791]
[1643740837377,1.99563838,2791.6,2791.0,0.1791]
[1643740837567,0.75160856,2791.5,2791.0,0.1791]
[1643740837768,0.1791,2791.7,2791.0,0.1791]
[1643740837965,0.75138886,2791.6,2791.0,0.1791]
[1643740838570,0.1791,2791.7,2791.0,0.1791]
[1643740838770,0.5853892,2791.7,2791.1,0.38258597]
[1643740838973,0.4062892,2791.7,2791.1,0.38258597]
[1643740839169,0.4062892,2791.7,2790.7,0.1791]
[1643740839668,0.4062892,2791.7,2790.9,0.89569]
[1643740839870,0.4062892,2791.7,2790.9,1.07479]
[1643740840272,0.4062892,2791.7,2790.9,1.47833703]
[1643740840469,0.4062892,2791.7,2790.9,0.58264703]
[1643740841706,0.4062892,2791.7,2790.9,0.1791]
[1643740842307,0.4062892,2791.7,2791.1,0.8956]
[1643740842711,0.4062892,2791.7,2791.1,0.90425783]
[1643740842911,0.4062892,2791.7,2791.1,0.8956]
[1643740845581,2.15489701,2791.6,2790.8,0.1791]
[1643740845782,0.75120138,2791.5,2790.6,0.1791]
[1643740845981,0.75120138,2791.5,2790.8,0.32493982]
[1643740846183,6.0791,2791.6,2790.8,0.32493982]
[1643740847183,5.9,2791.6,2790.8,0.32493982]
[1643740849206,5.9,2791.6,2790.9,0.89569]
[1643740850006,0.4062892,2791.7,2790.9,0.89569]
[1643740850207,0.4062892,2791.7,2790.9,1.07479]
[1643740851109,0.1791,2791.9,2790.9,1.07479]
[1643740851307,6.259,2792.0,2790.9,1.07479]
[1643740852114,0.44445516,2791.7,2790.9,1.07479]
[1643740852584,6.259,2792.0,2790.9,1.07479]
[1643740852585,6.259,2792.0,2791.0,0.8955589]
[1643740852786,6.259,2792.0,2791.3,0.89552]
[1643740853490,0.41167111,2791.6,2791.3,0.89552]
[1643740853686,0.1791,2792.2,2791.4,0.00839997]
[1643740853887,0.1791,2792.2,2791.3,0.89552]
[1643740854287,0.1791,2792.2,2791.2,0.143415]
[1643740854288,2.13974814,2792.2,2791.2,0.143415]
[1643740854486,2.13974814,2792.2,2790.9,0.1791]
[1643740854889,2.14261301,2792.2,2791.0,1.79127]
[1643740855689,0.35646161,2791.5,2791.0,1.79127]
[1643740856303,0.35646161,2791.5,2791.2,0.89567]
[1643740856505,0.35646161,2791.5,2791.0,1.79127]
[1643740856713,0.35646161,2791.5,2790.9,0.1791]
[1643740856714,2.06718812,2791.4,2790.9,0.1791]
[1643740856907,2.06718812,2791.4,2790.7,0.1791]
[1643740857511,0.35646161,2791.5,2790.7,0.1791]
[1643740857712,0.94899262,2791.0,2790.7,0.1791]
[1643740857911,0.44073951,2790.8,2790.7,0.1791]
[1643740858309,6.0621,2791.3,2790.7,0.1791]
[1643740858517,6.0621,2791.3,2789.4,21.70845965]
[1643740858518,1.31263165,2790.8,2789.4,21.70845965]
[1643740858721,1.31263165,2790.8,2789.4,3.5]
[1643740858722,0.01252596,2789.5,2789.4,3.5]
[1643740858922,0.01252596,2789.5,2789.3,0.00220082]
[1643740859117,0.44252596,2789.5,2789.3,0.00220082]
[1643740859517,5.41510067,2789.4,2789.3,0.00220082]
[1643740859970,1.11510067,2789.4,2789.3,0.00220082]
[1643740860369,0.43,2789.8,2789.3,0.00220082]
[1643740860666,6.1755,2790.0,2789.3,0.00220082]
[1643740860868,6.1755,2790.0,2789.4,0.25]
[1643740861064,5.9963,2790.0,2789.4,0.25]
[1643740861273,5.9963,2790.0,2789.5,0.6744984]
[1643740861467,0.83547646,2789.7,2789.4,0.25]
[1643740862782,0.83547646,2789.7,2789.5,0.70771296]
[1643740866120,0.01200039,2790.4,2789.6,0.17914]
[1643740866121,0.19120039,2790.4,2789.6,0.17914]
[1643740866317,0.19120039,2790.4,2789.7,0.70771296]
[1643740866318,0.1792,2790.4,2789.7,0.70771296]
[1643740866517,0.1792,2791.0,2789.8,0.17914]
[1643740866718,0.1792,2791.0,2789.9,1.13681296]
[1643740866919,0.1792,2791.0,2790.0,0.70771296]
[1643740867120,0.33770048,2790.3,2790.0,0.70771296]
[1643740867356,0.1792,2791.0,2790.0,0.70771296]
[1643740867557,1.3362,2791.0,2790.0,0.88681296]
[1643740867863,1.3362,2791.0,2790.1,0.70771296]
[1643740868058,1.3362,2791.0,2790.0,0.1791]
[1643740868059,1.3362,2791.0,2790.2,0.70771296]
[1643740868257,0.78484629,2790.5,2790.0,0.1791]
[1643740868460,0.36921127,2790.3,2790.1,0.67561957]
[1643740869158,0.36921127,2790.3,2790.0,0.1791]
[1643740869357,0.36921127,2790.3,2790.1,0.6757623]
[1643740869961,0.36921127,2790.3,2790.0,0.1791]
[1643740870160,0.36921127,2790.3,2789.9,0.25]
[1643740870365,0.36921127,2790.3,2790.0,0.67634079]
[1643740873715,0.36921127,2790.3,2789.9,0.25]
[1643740873912,0.1792,2790.2,2789.9,0.25]
[1643740875157,1.0755775,2790.2,2789.9,0.25]
[1643740875659,1.0755775,2790.2,2790.0,0.64960836]
[1643740876262,1.0755775,2790.2,2789.9,0.25]
[1643740877664,0.3,2790.1,2789.9,0.25]
[1643740878466,0.36921127,2790.3,2790.0,0.64955381]
[1643740878708,0.1792,2790.2,2790.0,0.64955381]
[1643740880012,0.1792,2790.2,2789.9,0.25]
[1643740880013,2.25882859,2790.2,2789.9,0.25]
[1643740880212,2.73802859,2790.2,2789.9,0.25]
[1643740880413,2.73802859,2790.2,2789.3,7.47220082]
[1643740880414,0.17913,2790.0,2789.3,7.47220082]
[1643740880621,1.45731358,2789.9,2789.4,0.64971243]
[1643740880817,2.42609489,2789.8,2789.4,0.64971243]
[1643740881115,1.97140854,2789.7,2789.4,0.64971243]
[1643740881311,2.10749185,2789.6,2789.4,0.64971243]
[1643740882370,2.10749185,2789.6,2789.3,0.25220082]
[1643740882565,2.28669185,2789.6,2789.3,0.25220082]
[1643740883361,0.1792,2789.6,2789.3,0.25220082]
[1643740883763,1.37486914,2789.7,2789.3,0.25220082]
[1643740883764,1.55406914,2789.7,2789.3,0.25220082]
[1643740884363,2.00097087,2789.6,2789.3,0.25220082]
[1643740884564,1.55406914,2789.7,2789.3,0.25220082]
[1643740884764,1.99883449,2789.6,2789.3,0.25220082]
[1643740885363,1.55406914,2789.7,2789.3,0.25220082]
[1643740885768,1.25406914,2789.7,2789.3,0.25220082]
[1643740886809,2.0120126,2789.6,2789.3,0.25220082]
[1643740887208,2.3120126,2789.6,2789.3,0.25220082]
[1643740887612,0.3,2789.6,2789.3,0.25220082]
[1643740888616,2.51725722,2789.6,2789.3,0.25220082]
[1643740889215,1.02670352,2789.5,2789.3,0.25220082]
[1643740889418,7.29036544,2789.4,2789.3,0.25220082]
[1643740889874,7.72036544,2789.4,2789.3,0.25220082]
[1643740890074,7.89949544,2789.4,2789.3,0.25220082]
[1643740890678,7.74775745,2789.4,2789.3,0.25220082]
[1643740893081,8.81775745,2789.4,2789.3,0.00220082]
[1643740893281,8.81775745,2789.4,2788.4,0.4292]
[1643740893282,0.01206434,2789.1,2788.4,0.4292]
[1643740893484,0.517,2789.0,2788.5,0.63726404]
[1643740893717,2.59704823,2788.9,2788.4,0.4292]
[1643740894016,3.71404823,2788.9,2788.4,0.4292]
[1643740894213,0.70557216,2788.8,2788.4,0.4292]
[1643740894413,0.89688,2788.6,2788.4,0.25]
[1643740894817,2.03572854,2788.5,2788.4,0.25]
[1643740895214,2.33572854,2788.5,2788.4,0.25]
[1643740897013,2.51485854,2788.5,2788.4,0.25]
[1643740897214,2.51485854,2788.5,2787.7,7.47]
[1643740897464,2.51485854,2788.5,2787.8,0.63654761]
[1643740897465,1.973182,2788.4,2787.8,0.63654761]
[1643740897665,2.44715719,2788.3,2787.8,0.63654761]
[1643740897865,0.1792,2788.2,2787.8,0.63654761]
[1643740898264,0.42876223,2788.1,2787.8,0.63654761]
[1643740898664,0.86988713,2788.0,2787.8,0.63654761]
[1643740899965,0.36371863,2788.2,2787.8,0.63654761]
[1643740900765,0.36371863,2788.2,2787.8,0.64251233]
[1643740900964,0.36371863,2788.2,2787.9,0.63654761]
[1643740901213,0.36371863,2788.2,2788.0,0.63654761]
[1643740901408,0.82630991,2788.1,2787.7,7.47]
[1643740901612,0.82630991,2788.1,2787.8,0.60797943]
[1643740903113,2.3234786,2788.3,2787.8,0.60797943]
[1643740903114,0.1792,2788.3,2787.8,0.60797943]
[1643740903317,0.1792,2788.5,2787.8,0.61994633]
[1643740903518,5.1496,2788.8,2787.9,0.60797943]
[1643740904121,0.1792,2789.1,2788.0,0.92092213]
[1643740904315,0.1792,2789.1,2788.1,1.45343987]
[1643740904514,0.1792,2789.1,2788.2,1.52429987]
[1643740904715,0.1792,2789.1,2788.3,0.61426541]
[1643740905003,7.7672,2789.2,2788.3,0.61426541]
[1643740905004,7.9464,2789.2,2788.3,0.61426541]
[1643740905208,7.7672,2789.2,2788.3,0.61426541]
[1643740905409,0.1792,2789.6,2788.4,0.17914]
[1643740905610,0.1792,2789.6,2788.5,0.66632044]
[1643740905810,0.44224465,2789.3,2788.8,0.58662309]
[1643740906011,0.44224465,2789.3,2788.9,0.60797943]
[1643740908211,1.33883955,2789.3,2788.9,0.60797943]
[1643740910019,2.30048006,2789.2,2788.9,0.60797943]
[1643740910222,2.30048006,2789.2,2788.8,0.25]
[1643740910420,0.517,2789.1,2788.8,0.25]
[1643740910616,2.57575172,2789.0,2788.8,0.25]
[1643740910817,0.517,2788.9,2788.8,0.25]
[1643740911016,3.02472143,2788.9,2788.8,0.25]
[1643740912465,2.50772143,2788.9,2788.8,0.25]
[1643740913364,2.80772143,2788.9,2788.8,0.25]
[1643740913761,2.50772143,2788.9,2788.8,0.25]
[1643740914164,2.50772143,2788.9,2787.8,3.12341897]
[1643740914363,0.42297006,2788.0,2787.9,0.60784289]
[1643740914570,0.67455928,2788.4,2787.9,0.60784289]
[1643740914763,0.67455928,2788.4,2787.7,0.84552044]
[1643740914764,0.67455928,2788.4,2788.0,0.60784289]
[1643740915164,2.25823705,2788.7,2788.1,0.60784289]
[1643740915364,2.25823705,2788.7,2787.7,0.84552044]
[1643740915365,2.25823705,2788.7,2787.8,0.60784289]
[1643740915566,2.25823705,2788.7,2787.8,1.27416333]
[1643740915567,0.39923391,2788.2,2787.8,1.27416333]
[1643740917621,0.87078909,2788.5,2787.9,1.27416333]
[1643740917822,0.87078909,2788.5,2788.0,0.60784289]
[1643740918023,0.87078909,2788.5,2788.1,0.60784289]
[1643740918222,0.87078909,2788.5,2788.2,0.60784289]
[1643740918422,0.87078909,2788.5,2788.3,0.60784289]
[1643740918623,0.1793,2788.6,2788.4,0.60784289]
[1643740918821,0.43242721,2788.5,2787.9,0.66632044]
[1643740919221,0.43242721,2788.5,2787.9,1.01931528]
[1643740919424,0.43242721,2788.5,2788.0,0.57899464]
[1643740919880,0.43242721,2788.5,2788.1,0.57899464]
[1643740920071,0.43242721,2788.5,2788.2,0.57899464]
[1643740920271,0.43242721,2788.5,2788.3,0.57899464]
[1643740920471,0.43242721,2788.5,2788.4,0.57899464]
[1643740921072,0.43242721,2788.5,2788.0,0.66632044]
[1643740921471,0.43242721,2788.5,2788.0,1.24531508]
[1643740921674,0.43242721,2788.5,2788.1,0.57899464]
[1643740921876,0.43242721,2788.5,2788.2,0.57899464]
[1643740922076,0.1792,2788.7,2788.3,0.57899464]
[1643740922275,0.1792,2788.7,2788.4,0.57899464]
[1643740922479,0.1792,2788.7,2788.5,0.57899464]
[1643740922676,0.1792,2788.7,2788.6,0.57899464]
[1643740923181,0.35898534,2788.8,2788.6,0.57899464]
[1643740923377,0.1792,2788.7,2788.3,0.66632044]
[1643740923816,0.1792,2788.7,2788.4,0.60909813]
[1643740924015,0.1792,2788.7,2788.5,0.60909813]
[1643740924213,0.1792,2788.7,2788.6,0.60909813]
[1643740924415,0.1792,2788.7,2788.2,0.66632044]
[1643740924815,0.1792,2788.7,2788.2,1.0161751]
[1643740925021,0.1792,2788.7,2788.3,0.60909813]
[1643740925417,0.1792,2788.7,2788.3,0.55909813]
[1643740925620,0.1792,2788.7,2788.3,0.66632044]
[1643740925820,0.1792,2788.7,2788.2,1.0161751]
[1643740926821,0.1792,2788.7,2788.2,0.66632044]
[1643740927021,0.35898534,2788.8,2788.2,0.66632044]
[1643740927478,2.06574675,2788.7,2787.9,0.66632044]
[1643740927677,0.8969393,2788.5,2787.9,0.66632044]
[1643740927871,0.41617191,2788.0,2787.8,0.66632044]
[1643740928278,0.41617191,2788.0,2787.7,0.66632044]
[1643740928470,0.41617191,2788.0,2787.6,0.66632044]
[1643740930871,0.41617191,2788.0,2787.6,0.91632044]
[1643740931119,0.1792,2788.3,2787.8,0.66632044]
[1643740931322,0.1792,2788.3,2787.9,0.66632044]
[1643740931519,0.1792,2788.5,2788.0,0.66632044]
[1643740931718,0.1792,2788.6,2788.0,0.66632044]
[1643740931921,2.17744561,2788.6,2788.0,0.66632044]
[1643740932120,0.34960725,2788.1,2787.9,0.66632044]
[1643740932319,0.34960725,2788.1,2787.8,0.66632044]
[1643740933122,0.89181189,2788.3,2787.9,0.66632044]
[1643740934865,1.30189048,2788.3,2787.9,0.66632044]
[1643740936273,0.89181189,2788.3,2787.9,0.66632044]
[1643740936475,3.07432461,2788.6,2787.9,0.66632044]
[1643740936674,0.1792,2788.6,2787.9,0.66632044]
[1643740937076,2.16779166,2788.6,2787.7,0.66632044]
[1643740937476,2.46779166,2788.6,2787.7,0.66632044]
[1643740937673,0.39100595,2788.0,2787.6,0.91632044]
[1643740937882,2.15357292,2787.9,2787.6,0.25]
[1643740938087,2.33277292,2787.9,2787.6,0.25]
[1643740938275,0.70999894,2787.7,2787.6,0.25]
[1643740938719,0.1793,2787.9,2787.6,0.25]
[1643740939515,0.80465885,2787.8,2787.6,0.25]
[1643740940725,0.1792,2787.7,2787.6,0.25]
[1643740941320,0.1792,2787.7,2787.2,0.66632044]
[1643740941526,0.91483336,2787.6,2786.7,0.66632044]
[1643740941726,0.91483336,2787.6,2786.5,0.1792]
[1643740941727,0.4792,2787.5,2786.5,0.66632044]
[1643740941933,0.4792,2787.5,2786.2,0.86423962]
[1643740941934,0.01243569,2786.8,2786.2,0.66632044]
[1643740942134,0.01243569,2786.8,2786.1,0.1792]
[1643740942135,2.4917017,2786.7,2786.1,0.66632044]
[1643740942372,2.4917017,2786.7,2785.9,0.66632044]
[1643740942580,1.7952809,2786.6,2785.7,0.66632044]
[1643740942779,1.33570942,2786.5,2785.7,0.66632044]
[1643740942982,1.33570942,2786.5,2785.8,0.04149491]
[1643740942983,0.34156988,2785.9,2785.8,0.04149491]
[1643740943284,0.34156988,2785.9,2785.7,0.04206334]
[1643740943884,0.34156988,2785.9,2785.6,0.04263176]
[1643740944082,0.34156988,2785.9,2785.4,0.04376861]
[1643740944480,1.99707374,2785.8,2785.4,0.04376861]
[1643740945081,0.34156988,2785.9,2785.3,0.17316861]
[1643740945282,2.01936758,2785.8,2785.3,0.17316861]
[1643740945481,2.01936758,2785.8,2785.4,0.56676262]
[1643740946125,0.90365661,2785.6,2785.4,0.56676262]
[1643740946327,0.34156988,2785.9,2785.4,0.56676262]
[1643740947533,0.85115407,2785.6,2785.4,0.56676262]
[1643740947733,0.34156988,2785.9,2785.5,0.56676262]
[1643740947927,0.34156988,2785.9,2785.2,1.1263915]
[1643740947928,0.34156988,2785.9,2785.6,0.56676262]
[1643740948134,0.34156988,2785.9,2785.7,0.56676262]
[1643740948327,0.34156988,2785.9,2785.8,0.56676262]
[1643740948928,0.34156988,2785.9,2785.8,0.44168048]
[1643740949131,0.52096988,2785.9,2785.8,0.44168048]
[1643740949329,0.34156988,2785.9,2785.3,0.44168048]
[1643740949628,0.34156988,2785.9,2785.4,0.44168048]
[1643740949880,0.34156988,2785.9,2785.5,0.44168048]
[1643740950070,2.00606179,2785.8,2785.6,0.44168048]
[1643740950272,0.34156988,2785.9,2785.7,0.44168048]
[1643740950472,0.8319286,2785.8,2785.2,1.1263915]
[1643740950672,0.8319286,2785.8,2785.3,0.44146833]
[1643740951876,2.18884123,2786.1,2785.3,0.44146833]
[1643740952477,2.18884123,2786.1,2785.4,0.44123691]
[1643740952680,0.1794,2786.1,2785.5,0.44123691]
[1643740952879,0.1794,2786.1,2785.7,0.39800409]
[1643740953089,0.1794,2786.1,2785.8,0.44123691]
[1643740953283,6.5047,2787.1,2785.8,0.63661388]
[1643740953284,0.1794,2787.0,2785.8,0.63661388]
[1643740953485,0.1794,2787.0,2785.9,0.44123691]
[1643740953723,1.71364825,2787.0,2785.9,0.44123691]
[1643740953930,0.1794,2787.0,2785.9,0.44123691]
[1643740954128,0.35079888,2786.6,2785.9,0.44123691]
[1643740955123,0.79675282,2786.8,2785.9,0.44123691]
[1643740956131,1.16913001,2786.8,2786.2,0.41383396]
[1643740956330,1.16913001,2786.8,2786.3,0.44123691]
[1643740957677,1.16913001,2786.8,2786.4,0.44123691]
[1643740957882,1.16913001,2786.8,2785.8,0.1794]
[1643740958077,1.16913001,2786.8,2785.9,0.44050703]
[1643740958378,0.37237719,2786.8,2786.3,0.36957741]
[1643740958582,23.17344573,2787.1,2786.4,0.44050703]
[1643740958779,0.33437952,2786.8,2786.4,0.44050703]
[1643740958981,0.1794,2787.0,2786.4,0.44050703]
[1643740959190,0.1794,2787.5,2786.5,2.58242319]
[1643740959385,0.9488517,2787.6,2786.6,1.44050703]
[1643740959582,0.9488517,2787.6,2786.7,0.44050703]
[1643740959583,0.1792,2787.5,2786.7,0.44050703]
[1643740959780,0.9488517,2787.6,2786.8,0.44050703]
[1643740959983,0.9488517,2787.6,2786.9,0.44050703]
[1643740960181,0.42338938,2786.7,2786.4,0.1792]
[1643740960381,0.42338938,2786.7,2786.5,0.41044128]
[1643740960579,0.42338938,2786.7,2786.6,6.5794]
[1643740960780,0.42338938,2786.7,2786.6,6.98984128]
[1643740961131,0.82271432,2787.1,2786.6,6.98984128]
[1643740961317,0.82271432,2787.1,2786.7,0.41044128]
[1643740961723,0.1792,2787.7,2786.7,0.41044128]
[1643740962116,0.41839044,2787.1,2786.7,0.41044128]
[1643740963125,0.41839044,2787.1,2786.8,0.41044128]
[1643740963322,0.41839044,2787.1,2786.9,0.41044128]
[1643740963523,0.41839044,2787.1,2786.3,0.1794]
[1643740963723,0.41839044,2787.1,2786.4,0.44092109]
[1643740964331,0.41839044,2787.1,2786.6,0.37847954]
[1643740964527,0.1792,2787.7,2786.7,0.44092109]
[1643740964963,0.1792,2787.7,2786.7,0.44957637]
[1643740965167,0.86306752,2787.7,2786.8,0.44092109]
[1643740965563,0.40784073,2787.2,2786.8,0.44092109]
[1643740967466,0.86306752,2787.7,2786.8,0.44092109]
[1643740967668,0.86306752,2787.7,2786.9,0.00643081]
[1643740967868,0.86306752,2787.7,2787.0,0.44092109]
[1643740968068,0.86306752,2787.7,2786.7,7.47]
[1643740968069,0.86306752,2787.7,2787.1,0.44092109]
[1643740968269,0.86306752,2787.7,2787.2,0.44092109]
[1643740968638,0.86306752,2787.7,2786.7,7.47]
[1643740968837,0.86306752,2787.7,2786.8,0.41134096]
[1643740970542,0.35321249,2787.3,2786.8,0.41134096]
[1643740976219,0.35321249,2787.3,2786.8,0.59074096]
[1643740976523,0.35321249,2787.3,2786.9,0.41134096]
[1643740977929,0.35321249,2787.3,2787.0,0.41134096]
[1643740978128,0.35321249,2787.3,2787.1,0.41134096]
[1643740978329,0.35321249,2787.3,2787.2,0.41134096]
[1643740978728,2.00632911,2787.6,2786.8,0.41134096]
[1643740978729,1.081303,2787.6,2786.8,0.41134096]
[1643740978929,1.081303,2787.6,2786.9,0.41134096]
[1643740979130,0.86306752,2787.7,2787.0,0.41134096]
[1643740979329,0.86306752,2787.7,2787.1,0.41134096]
[1643740979530,0.32261244,2787.6,2787.2,0.41134096]
[1643740979731,0.32261244,2787.6,2786.7,7.792833]
[1643740979732,0.32261244,2787.6,2787.3,0.41134096]
[1643740979976,0.32261244,2787.6,2787.4,0.41134096]
[1643740980184,0.32261244,2787.6,2787.5,0.41134096]
[1643740980977,1.16520039,2787.6,2787.5,0.41134096]
[1643740982981,0.32261244,2787.6,2786.8,0.66632044]
[1643740983186,0.0120593,2787.3,2786.7,0.322833]
[1643740983389,0.1911893,2787.3,2786.7,0.143633]
[1643740983637,0.517,2787.2,2786.2,0.1792]
[1643740983828,0.1794,2787.1,2786.1,7.47]
[1643740984032,0.517,2787.0,2786.1,7.47]
[1643740984233,0.35088908,2786.3,2786.1,7.47]
[1643740985634,0.84630427,2786.6,2786.1,7.47]
[1643740987679,0.34037334,2786.4,2786.1,7.47]
[1643740992857,2.94305,2788.2,2786.2,0.86423962]
[1643740992858,0.1794,2787.1,2786.2,0.86423962]
[1643740993055,0.1794,2787.5,2786.3,23.54143936]
[1643740993257,0.1794,2787.8,2786.8,0.67612669]
[1643740993452,0.1794,2787.8,2786.9,0.67612669]
[1643740993752,0.34803362,2787.2,2786.8,0.67612669]
[1643740993952,0.34803362,2787.2,2786.7,0.85532669]
[1643740994154,0.34803362,2787.2,2786.7,0.67612669]
[1643740994753,0.34803362,2787.2,2786.8,0.67612669]
[1643740994977,0.34803362,2787.2,2786.7,0.67612669]
[1643740995371,0.34803362,2787.2,2786.8,0.67612669]
[1643740996577,0.34803362,2787.2,2786.9,0.67612669]
[1643740997577,0.34220426,2787.2,2786.9,0.67612669]
[1643740998622,0.47851983,2787.4,2786.9,0.67612669]
[1643740998828,0.33392754,2787.3,2786.9,0.67612669]
[1643740999023,0.33392754,2787.3,2786.9,1.06945118]
[1643740999428,0.33392754,2787.3,2786.9,0.67612669]
[1643741008841,0.33392754,2787.3,2786.9,1.05086257]
[1643741009036,0.33392754,2787.3,2787.0,0.37473588]
[1643741009241,0.33392754,2787.3,2787.1,0.37473588]
[1643741009536,0.33392754,2787.3,2787.2,0.37473588]
[1643741009742,2.30387289,2787.3,2787.2,0.37473588]
[1643741009979,7.94843078,2787.3,2787.2,0.37473588]
[1643741010183,8.12756078,2787.3,2787.2,0.37473588]
[1643741010375,4.5,2787.2,2786.5,0.1794]
[1643741010575,3.94048134,2787.3,2786.6,0.35068125]
[1643741010576,3.52560718,2787.1,2786.6,0.35068125]
[1643741010778,0.77030204,2786.9,2786.6,0.35068125]
[1643741010979,1.14455789,2786.8,2786.6,0.35068125]
[1643741011384,0.39110618,2786.7,2786.6,0.35068125]
[1643741011778,0.39110618,2786.7,2786.3,1.02680794]
[1643741011992,0.39110618,2786.7,2786.4,0.35068125]
[1643741012179,0.39110618,2786.7,2786.5,0.35068125]
[1643741012380,0.39110618,2786.7,2786.6,0.35068125]
[1643741014035,0.77030204,2786.9,2786.6,0.35068125]
[1643741014230,0.77030204,2786.9,2786.7,0.35068125]
[1643741014634,0.1794,2787.1,2786.8,0.35068125]
[1643741014834,6.4061,2787.2,2786.7,1.02680794]
[1643741015033,6.2267,2787.2,2786.8,0.35068125]
[1643741015232,0.38723467,2787.0,2786.9,0.35068125]
[1643741015633,1.11610627,2787.0,2786.9,0.35068125]
[1643741015833,0.1794,2787.7,2786.9,0.35068125]
[1643741016038,1.14411186,2787.6,2787.0,0.35068125]
[1643741016237,1.14411186,2787.6,2786.6,0.86423962]
[1643741016238,1.14411186,2787.6,2787.1,0.35068125]
[1643741016543,1.44411186,2787.6,2787.2,0.35068125]
[1643741016735,1.32331186,2787.5,2787.3,0.35068125]
[1643741016937,1.14411186,2787.4,2786.7,0.67612669]
[1643741017134,1.14411186,2787.4,2786.8,1.03816349]
[1643741017384,0.70424981,2787.1,2786.9,0.3620368]
[1643741017577,0.35732469,2787.0,2786.6,0.85552669]
[1643741017776,0.35732469,2787.0,2786.7,0.36213146]
[1643741018581,0.70424981,2787.1,2786.7,0.36213146]
[1643741018777,0.38320037,2787.1,2786.7,0.36213146]
[1643741018978,1.3172,2787.5,2786.7,0.36213146]
[1643741019184,1.16939584,2787.4,2786.7,0.36213146]
[1643741019579,0.44427635,2787.0,2786.7,0.36213146]
[1643741019781,0.44427635,2787.0,2786.7,1.03825815]
[1643741020481,0.44427635,2787.0,2786.8,0.36213146]
[1643741020683,0.8477936,2786.9,2786.7,0.67612669]
[1643741021839,0.8477936,2786.9,2786.7,1.01342798]
[1643741022034,0.44427635,2787.0,2786.7,1.01342798]
[1643741022241,0.44427635,2787.0,2786.8,0.33730129]
[1643741022438,0.44427635,2787.0,2786.9,0.33730129]
[1643741022640,3.31978038,2787.5,2786.6,1.01342798]
[1643741022839,1.16399745,2787.4,2786.7,0.33730129]
[1643741023041,0.8212732,2787.2,2786.6,1.01342798]
[1643741023240,0.8212732,2787.2,2786.7,0.33730129]
[1643741023241,1.16399745,2787.1,2786.7,0.33730129]
[1643741023441,1.16399745,2787.1,2786.8,0.33730129]
[1643741023645,1.16399745,2787.1,2786.9,0.33730129]
[1643741023843,1.50674145,2787.1,2786.6,1.01342798]
[1643741024042,0.342744,2787.1,2786.7,0.33730129]
[1643741024242,0.342744,2787.1,2786.7,0.67612669]
[1643741024881,1.16275016,2787.0,2786.6,1.01342798]
[1643741025083,1.16275016,2787.0,2786.7,0.33730129]
[1643741025283,1.16275016,2787.0,2786.8,0.33730129]
[1643741025485,1.16275016,2787.0,2786.9,0.33730129]
[1643741026083,1.16275016,2787.0,2786.6,0.33730129]
[1643741026282,1.16275016,2787.0,2786.7,0.33730129]
[1643741026483,1.16275016,2787.0,2786.8,0.33730129]
[1643741026681,1.16275016,2787.0,2786.6,1.01342798]
[1643741026882,1.16275016,2787.0,2786.7,0.33730129]
[1643741027088,3.16313987,2787.0,2786.8,0.33730129]
[1643741027284,2.00038971,2787.0,2786.9,0.33730129]
[1643741027482,1.15912117,2787.0,2786.5,1.01342798]
[1643741027683,1.15912117,2787.0,2786.9,0.33730129]
[1643741027887,1.15912117,2787.0,2786.5,0.67612669]
[1643741028088,3.20881935,2787.0,2786.5,0.67612669]
[1643741028386,1.15912117,2786.9,2786.5,0.67612669]
[1643741028647,0.36492685,2786.6,2786.5,0.67612669]
[1643741028835,2.52242579,2787.4,2786.5,0.67612669]
[1643741029037,2.06820943,2787.3,2786.5,0.67612669]
[1643741029238,3.65464335,2787.2,2786.5,0.67612669]
[1643741029437,1.17092963,2787.1,2786.5,0.67612669]
[1643741029642,1.47092963,2787.1,2786.5,0.67612669]
[1643741029837,1.17092963,2787.0,2786.5,0.67612669]
[1643741030438,0.3355484,2786.7,2786.5,0.67612669]
[1643741030843,2.08573717,2786.6,2786.3,0.67612669]